bitfinex-derivatives/quotes_SOLF0:USTF0_20260114
["timestamp","ask_amount","ask_price","bid_price","bid_amount"]
[1768389677589,4.99617578,144.13,144.06,3.02434351]
[1768389677887,4.99617578,144.12,144.06,3.02434351]
[1768389678089,1.72848457,144.14,144.06,3.02434351]
[1768389678286,4.99621929,144.13,144.06,3.02434351]
[1768389678494,4.99621929,144.12,144.06,3.02434351]
[1768389678678,1.72848457,144.15,144.06,3.02434351]
[1768389678882,4.99655621,144.14,144.06,3.02434351]
[1768389679083,4.99655621,144.13,144.06,3.02434351]
[1768389679290,4.99655621,144.12,144.06,3.02434351]
[1768389679589,1.72848457,144.15,144.06,3.02434351]
[1768389679794,4.99711893,144.14,144.06,3.02434351]
[1768389679989,1.72848457,144.15,144.06,3.02434351]
[1768389680188,4.99712105,144.14,144.06,3.02434351]
[1768389680488,4.99712105,144.13,144.06,3.02434351]
[1768389680684,4.99712105,144.12,144.06,3.02434351]
[1768389680879,1.72848457,144.15,144.06,3.02434351]
[1768389681086,4.99589326,144.14,144.06,3.02434351]
[1768389681494,4.99589326,144.13,144.06,3.02434351]
[1768389681694,4.99589326,144.12,144.06,3.02434351]
[1768389681992,1.72848457,144.15,144.06,3.02434351]
[1768389682196,4.99635818,144.14,144.06,3.02434351]
[1768389682391,4.99635818,144.13,144.06,3.02434351]
[1768389682694,4.99635818,144.12,144.06,3.02434351]
[1768389682992,1.72848457,144.15,144.06,3.02434351]
[1768389683187,4.99518906,144.14,144.06,3.02434351]
[1768389683389,4.99518906,144.13,144.06,3.02434351]
[1768389683588,4.99518906,144.12,144.06,3.02434351]
[1768389683787,1.72848457,144.15,144.06,3.02434351]
[1768389683981,4.99449392,144.14,144.06,3.02434351]
[1768389684185,4.99449392,144.13,144.06,3.02434351]
[1768389684390,4.99449392,144.12,144.06,3.02434351]
[1768389684590,1.72848457,144.15,144.06,3.02434351]
[1768389684789,4.99437009,144.14,144.06,3.02434351]
[1768389684992,4.99437009,144.13,144.06,3.02434351]
[1768389685184,4.99437009,144.12,144.06,3.02434351]
[1768389685385,1.72848457,144.15,144.06,3.02434351]
[1768389685590,4.9941604,144.14,144.06,3.02434351]
[1768389685891,1.72848457,144.15,144.06,3.02434351]
[1768389685892,4.9941604,144.13,144.06,3.02434351]
[1768389686093,4.9941604,144.12,144.06,3.02434351]
[1768389686290,1.72848457,144.14,144.06,3.02434351]
[1768389686494,4.99222133,144.13,144.06,3.02434351]
[1768389686692,4.99222133,144.12,144.06,3.02434351]
[1768389686989,1.72848457,144.14,144.06,3.02434351]
[1768389687196,4.99219608,144.13,144.06,3.02434351]
[1768389687394,4.99219608,144.12,144.06,3.02434351]
[1768389687596,1.72848457,144.14,144.06,3.02434351]
[1768389687891,4.9920288,144.13,144.06,3.02434351]
[1768389688089,4.9920288,144.12,144.06,3.02434351]
[1768389688289,1.72848457,144.14,144.06,3.02434351]
[1768389688290,4.9920288,144.11,144.06,3.02434351]
[1768389688488,1.72848457,144.14,144.06,3.02434351]
[1768389688683,4.99158566,144.13,144.06,3.02434351]
[1768389688888,4.99158566,144.12,144.06,3.02434351]
[1768389689096,4.99158566,144.11,144.06,3.02434351]
[1768389689286,1.72848457,144.14,144.06,3.02434351]
[1768389689485,4.99158817,144.13,144.06,3.02434351]
[1768389689693,4.99158817,144.12,144.06,3.02434351]
[1768389689887,4.99158817,144.11,144.06,3.02434351]
[1768389690085,1.72848457,144.14,144.06,3.02434351]
[1768389690289,5.09558542,144.13,144.06,3.02434351]
[1768389690489,5.09558542,144.12,144.06,3.02434351]
[1768389690695,5.09558542,144.11,144.06,3.02434351]
[1768389690889,1.72848457,144.14,144.06,3.02434351]
[1768389691094,5.09403552,144.13,144.06,3.02434351]
[1768389691291,5.09403552,144.12,144.06,3.02434351]
[1768389691491,5.09403552,144.11,144.06,3.02434351]
[1768389691795,1.72848457,144.14,144.06,3.02434351]
[1768389691995,5.09163087,144.13,144.06,3.02434351]
[1768389692195,5.09163087,144.12,144.06,3.02434351]
[1768389692391,5.09163087,144.11,144.06,3.02434351]
[1768389692589,1.72848457,144.14,144.06,3.02434351]
[1768389692788,5.09034971,144.13,144.06,3.02434351]
[1768389693092,5.09034971,144.12,144.06,3.02434351]
[1768389693291,5.09034971,144.11,144.06,3.02434351]
[1768389693492,1.72848457,144.14,144.06,3.02434351]
[1768389693693,5.09332005,144.13,144.06,3.02434351]
[1768389693891,5.09332005,144.12,144.06,3.02434351]
[1768389694093,5.09332005,144.11,144.06,3.02434351]
[1768389694293,1.72848457,144.14,144.06,3.02434351]
[1768389694493,5.09361704,144.13,144.06,3.02434351]
[1768389694694,5.09361704,144.13,143.97,3.06269897]
[1768389694695,0.05133252,144.1,143.97,3.06269897]
[1768389694896,1.72848457,144.07,143.98,1.72848457]
[1768389695092,5.09361704,144.06,143.99,3.06269897]
[1768389695292,5.09361704,144.05,143.99,3.06269897]
[1768389695490,1.72848457,144.07,143.99,3.06269897]
[1768389695690,5.09050263,144.06,143.99,3.06269897]
[1768389695892,5.09050263,144.05,143.99,3.06269897]
[1768389696092,1.72848457,144.07,143.99,3.06269897]
[1768389696388,5.09049786,144.06,143.99,3.06269897]
[1768389696688,1.72848457,144.07,143.99,3.06269897]
[1768389696889,5.08656163,144.06,143.99,3.06269897]
[1768389697093,1.72848457,144.07,143.99,3.06269897]
[1768389697289,5.08642606,144.06,143.99,3.06269897]
[1768389697496,1.72848457,144.07,143.99,3.06269897]
[1768389697699,5.08546818,144.06,143.99,3.06269897]
[1768389697892,81.16,144.13,143.86,62.0]
[1768389697893,1.72848457,144.1,144.02,1.72848457]
[1768389698089,1.72848457,144.1,144.03,3.16016409]
[1768389698886,1.72848457,144.11,144.03,3.16016409]
[1768389699089,5.08567994,144.1,144.03,3.16016409]
[1768389699299,1.72848457,144.12,144.04,3.16016409]
[1768389699490,5.08552866,144.11,144.05,3.16016409]
[1768389699685,1.72848457,144.14,144.05,3.16016409]
[1768389699887,20.85,144.17,144.09,3.16016409]
[1768389700101,5.08628423,144.16,144.09,3.16016409]
[1768389700395,6.8147688,144.15,144.09,3.16016409]
[1768389700601,5.08628423,144.14,144.09,3.16016409]
[1768389700801,0.04370829,144.14,144.09,3.16016409]
[1768389701797,1.77219286,144.14,144.09,3.16016409]
[1768389702392,0.04370829,144.14,144.09,3.16016409]
[1768389702597,0.04370829,144.14,144.1,3.16016409]
[1768389705403,2.69875794,144.16,144.1,3.16016409]
[1768389705710,2.69875794,144.17,144.11,3.21119299]
[1768389707306,81.18,144.19,144.11,3.21119299]
[1768389707507,2.69875794,144.17,144.11,3.21119299]
[1768389708203,81.18,144.19,144.11,3.21119299]
[1768389708408,5.07883813,144.18,144.11,3.21119299]
[1768389708595,2.69875794,144.19,144.11,3.21119299]
[1768389708795,5.07751099,144.18,144.11,3.21119299]
[1768389709104,2.69875794,144.16,144.11,3.21119299]
[1768389709304,2.69875794,144.14,144.01,2.69875794]
[1768389710010,2.69875794,144.2,144.03,2.69875794]
[1768389710211,2.69875794,144.16,144.03,2.69875794]
[1768389710401,2.69875794,144.2,144.03,2.69875794]
[1768389710604,2.69875794,144.16,144.03,2.69875794]
[1768389711309,102.01,144.24,144.04,3.16016409]
[1768389711608,2.69875794,144.15,144.06,3.16016409]
[1768389711807,2.69875794,144.16,144.09,3.16016409]
[1768389712811,2.69875794,144.16,144.11,3.20659543]
[1768389713213,2.69875794,144.18,144.11,3.16016409]
[1768389713606,2.69875794,144.21,144.13,3.16016409]
[1768389713809,2.69875794,144.19,144.13,3.16016409]
[1768389714017,2.69875794,144.17,144.12,0.04695749]
[1768389714210,2.69875794,144.17,144.11,3.16016409]
[1768389714403,2.74784972,144.17,144.11,3.16016409]
[1768389714713,0.04909178,144.17,144.13,0.0453505]
[1768389715415,0.04909178,144.17,144.11,3.16016409]
[1768389724224,2.69875794,144.19,144.14,3.16016409]
[1768389724524,2.69875794,144.17,144.11,3.16016409]
[1768389725219,2.69875794,144.15,144.11,3.16016409]
[1768389725725,0.04644208,144.14,144.11,3.16016409]
[1768389726020,0.04644208,144.14,144.08,3.17925449]
[1768389726525,2.69875794,144.15,144.08,3.17925449]
[1768389726719,101.99,144.24,144.08,3.17925449]
[1768389726924,2.69875794,144.19,144.08,3.17925449]
[1768389727116,2.69875794,144.19,144.06,2.69875794]
[1768389727117,2.69875794,144.19,144.1,0.04899482]
[1768389727323,2.69875794,144.19,144.11,3.17925449]
[1768389728213,2.69875794,144.19,144.14,0.05300818]
[1768389728516,2.69875794,144.15,144.04,3.17925449]
[1768389730125,2.69875794,144.15,144.08,3.22516827]
[1768389734523,2.69875794,144.13,144.06,3.17925449]
[1768389734722,2.74397391,144.13,144.06,3.17925449]
[1768389734920,2.69875794,144.11,143.99,2.69875794]
[1768389736120,2.69875794,144.13,143.97,2.69875794]
[1768389736121,0.04796837,144.06,143.97,2.69875794]
[1768389736528,2.69875794,144.09,143.97,2.69875794]
[1768389737026,2.69875794,144.09,143.98,3.17925449]
[1768389737222,2.69875794,144.09,144.02,0.04374524]
[1768389737430,2.69875794,144.09,144.02,3.22299973]
[1768389740524,2.69875794,144.11,144.02,3.22299973]
[1768389740725,2.69875794,144.13,144.02,3.22299973]
[1768389740927,2.69875794,144.13,144.02,3.17925449]
[1768389741318,2.69875794,144.13,144.06,0.04656005]
[1768389742823,2.69875794,144.15,144.06,3.05623272]
[1768389743022,4.98057297,144.14,144.06,3.05623272]
[1768389743219,2.69875794,144.15,144.06,3.00967267]
[1768389743423,4.98165797,144.14,144.06,3.00967267]
[1768389743622,2.69875794,144.15,144.09,0.04546857]
[1768389743824,0.04461823,144.12,144.06,3.00967267]
[1768389744027,0.04461823,144.12,144.02,3.00967267]
[1768389744533,2.69875794,144.13,144.02,3.00967267]
[1768389744721,4.9809091,144.12,144.02,3.00967267]
[1768389744920,2.69875794,144.13,144.02,3.00967267]
[1768389745121,4.98091122,144.12,144.02,3.00967267]
[1768389745316,2.69875794,144.13,144.02,3.00967267]
[1768389745531,0.0452542,144.09,144.02,3.00967267]
[1768389746732,2.69875794,144.15,144.04,3.00967267]
[1768389746928,4.98080199,144.14,144.04,3.00967267]
[1768389747126,2.69875794,144.15,144.04,3.00967267]
[1768389747324,4.98067558,144.14,144.04,3.00967267]
[1768389747523,2.69875794,144.16,144.04,3.00967267]
[1768389747727,4.9803308,144.15,144.04,3.00967267]
[1768389747927,4.9803308,144.14,144.08,0.04501893]
[1768389748128,2.69875794,144.16,144.08,0.04501893]
[1768389748432,4.98031451,144.15,144.08,0.04501893]
[1768389748731,4.98031451,144.14,144.08,3.0546916]
[1768389748932,2.69875794,144.16,144.08,3.0546916]
[1768389749131,4.98082134,144.15,144.08,3.00967267]
[1768389749425,4.98082134,144.14,144.08,3.00967267]
[1768389749629,2.69875794,144.16,144.11,0.04793318]
[1768389749832,0.0438893,144.13,144.08,3.00967267]
[1768389752529,2.69875794,144.12,144.05,3.00967267]
[1768389753035,2.69875794,144.15,144.05,3.00967267]
[1768389753429,0.04785678,144.1,144.05,3.00967267]
[1768389757722,0.04785678,144.1,144.03,3.23530215]
[1768389758228,2.69875794,144.11,144.03,3.23530215]
[1768389758633,0.05044161,144.08,144.03,3.23530215]
[1768389759827,2.69875794,144.07,143.99,3.23530215]
[1768389760836,0.0456754,144.04,143.99,3.23530215]
[1768389763437,1.77559971,144.04,143.99,3.23530215]
[1768389766439,1.77559971,144.04,143.96,3.23530215]
[1768389766833,1.72992431,144.04,143.86,3.23530215]
[1768389767040,1.72992431,144.02,143.94,3.23530215]
[1768389767243,0.05161384,144.01,143.94,3.23530215]
[1768389767443,0.05161384,144.01,143.94,3.2860914]
[1768389767838,0.05161384,144.01,143.94,0.05078925]
[1768389769235,0.05161384,144.01,143.94,3.2860914]
[1768389770042,0.05161384,144.01,143.94,5.01601571]
[1768389770943,0.05161384,144.01,143.95,3.23530215]
[1768389778340,0.05161384,144.01,143.94,1.78071356]
[1768389778341,6.952,144.2,143.97,3.23530215]
[1768389778557,1.72992431,144.1,144.01,3.23530215]
[1768389778851,1.72992431,144.06,144.01,3.23530215]
[1768389779049,1.72992431,144.06,143.98,3.23530215]
[1768389779755,1.72992431,144.07,144.01,0.04505902]
[1768389780251,20.85,144.17,143.98,3.23530215]
[1768389780455,1.72992431,144.06,143.98,3.23530215]
[1768389781157,0.0436792,144.03,143.98,3.23530215]
[1768389782651,1.72992431,144.06,143.98,3.23530215]
[1768389782850,1.72992431,144.06,143.99,0.04617938]
[1768389783051,1.72992431,144.04,143.99,0.04617938]
[1768389783452,1.72992431,144.02,143.98,3.23530215]
[1768389784756,0.0476126,144.01,143.98,3.23530215]
[1768389785256,0.0476126,144.01,143.93,3.01116189]
[1768389785650,1.72992431,144.02,143.93,3.01116189]
[1768389786363,1.72992431,144.03,143.97,3.01116189]
[1768389787152,27.802,144.16,143.97,3.01116189]
[1768389787350,1.72992431,144.06,143.98,3.01116189]
[1768389787556,1.72992431,144.06,144.0,3.01116189]
[1768389789162,27.802,144.16,144.0,3.01116189]
[1768389789367,1.72992431,144.07,144.0,3.01116189]
[1768389790054,1.72992431,144.07,144.02,3.06238007]
[1768389795771,1.72992431,144.05,144.02,0.05121818]
[1768389795968,1.72992431,144.05,143.99,3.01116189]
[1768389796270,1.78280861,144.05,143.99,3.01116189]
[1768389797171,0.0528843,144.05,143.99,3.01116189]
[1768389799372,1.72992431,144.06,143.99,3.01116189]
[1768389799568,1.72992431,144.06,144.02,3.24492256]
[1768389802580,1.72992431,144.08,144.02,3.24492256]
[1768389803383,1.72992431,144.08,144.04,0.04731238]
[1768389803983,20.85,144.17,144.04,0.04731238]
[1768389804183,1.72992431,144.07,144.04,0.04731238]
[1768389804386,1.72992431,144.07,144.02,3.24492256]
[1768389804784,1.72992431,144.07,144.04,0.04782418]
[1768389806178,20.85,144.17,144.04,0.04782418]
[1768389806378,20.85,144.15,144.04,3.29274674]
[1768389806685,259.22,144.18,144.04,3.24492256]
[1768389806686,1.72992431,144.09,144.04,3.24492256]
[1768389808286,1.72992431,144.11,144.04,3.24492256]
[1768389808977,1.72992431,144.11,144.06,0.04521857]
[1768389813779,1.72992431,144.11,144.06,3.29014113]
[1768389816793,1.72992431,144.13,144.06,3.29014113]
[1768389817293,1.72992431,144.13,144.06,3.24492256]
[1768389817794,1.72992431,144.13,144.08,3.03838363]
[1768389819386,1.72992431,144.12,144.08,3.03838363]
[1768389822785,1.20799778,144.19,144.08,3.03838363]
[1768389822982,1.72992431,144.12,144.08,3.03838363]
[1768389823195,1.72992431,144.12,144.08,2.98654016]
[1768389823390,2.69927888,144.14,144.08,2.98654016]
[1768389823589,2.69927888,144.14,144.09,0.05261139]
[1768389826391,2.69927888,144.15,144.09,0.05261139]
[1768389826693,2.69927888,144.15,144.09,3.03915155]
[1768389826896,2.69927888,144.15,144.09,2.98654016]
[1768389827293,2.69927888,144.15,144.11,0.05022621]
[1768389827495,2.69927888,144.15,144.09,2.98654016]
[1768389829399,2.69927888,144.13,144.09,2.98654016]
[1768389830098,2.69927888,144.14,144.09,2.98654016]
[1768389833592,0.04467096,144.13,144.09,2.98654016]
[1768389841001,0.04467096,144.13,144.07,2.98654016]
[1768389841002,2.69927888,144.12,144.07,2.98654016]
[1768389841504,2.69927888,144.1,143.92,2.69927888]
[1768389841706,2.69927888,144.1,143.97,2.69927888]
[1768389842909,2.69927888,144.1,144.02,0.04799339]
[1768389843308,2.69927888,144.1,144.03,2.98654016]
[1768389844107,2.69927888,144.1,144.05,0.04983007]
[1768389850012,0.04390034,144.09,144.05,0.04983007]
[1768389854516,0.04390034,144.09,144.05,3.29947003]
[1768389860520,2.69927888,144.14,144.05,3.29947003]
[1768389860727,4.98571462,144.13,144.05,3.29947003]
[1768389861020,4.98571462,144.12,144.05,3.24963996]
[1768389861225,2.69927888,144.14,144.05,3.24963996]
[1768389861426,4.98568715,144.13,144.05,3.24963996]
[1768389861637,2.69927888,144.14,144.05,3.24963996]
[1768389861838,4.98587249,144.13,144.08,0.05161292]
[1768389862041,2.69927888,144.14,144.08,3.12630184]
[1768389862241,4.9855952,144.13,144.08,3.12630184]
[1768389862540,2.69927888,144.14,144.08,3.12630184]
[1768389862739,4.9855979,144.13,144.08,3.12630184]
[1768389863038,2.69927888,144.14,144.08,3.12630184]
[1768389863238,4.98560048,144.13,144.08,3.12630184]
[1768389863539,2.69927888,144.14,144.08,3.12630184]
[1768389863834,4.98563369,144.13,144.08,3.12630184]
[1768389864035,2.69927888,144.14,144.08,3.12630184]
[1768389864235,4.98560186,144.13,144.08,3.12630184]
[1768389864434,2.69927888,144.14,144.08,3.12630184]
[1768389864635,4.98563034,144.13,144.08,3.12630184]
[1768389864840,2.69927888,144.14,144.08,3.12630184]
[1768389865033,4.98581569,144.13,144.08,3.12630184]
[1768389865341,2.69927888,144.21,144.1,3.07468892]
[1768389865534,2.69927888,144.19,144.1,3.07468892]
[1768389867344,2.69927888,144.19,144.13,0.04956013]
[1768389868738,1.20774623,144.24,144.13,0.04956013]
[1768389868739,2.69927888,144.17,144.13,0.04956013]
[1768389869044,2.69927888,144.17,143.99,2.69927888]
[1768389869045,2.69927888,144.15,144.08,3.07468892]
[1768389870247,0.05309308,144.13,144.1,0.04384587]
[1768389874347,2.69927888,144.16,144.1,3.11853479]
[1768389875037,2.69927888,144.18,144.1,3.11853479]
[1768389875550,2.69927888,144.18,144.1,3.07468892]
[1768389875951,2.69927888,144.18,144.13,0.05195835]
[1768389877545,2.69927888,144.19,144.13,0.05195835]
[1768389878051,2.69927888,144.19,144.11,3.06393797]
[1768389878454,2.69927888,144.19,144.15,0.04944825]
[1768389881054,2.69927888,144.19,144.05,2.69927888]
[1768389881349,2.69927888,144.17,144.06,3.06393797]
[1768389882451,1.20774623,144.24,144.11,3.06393797]
[1768389882656,2.69927888,144.19,144.11,3.06393797]
[1768389883258,2.69927888,144.19,144.14,0.04727845]
[1768389885451,1.72621906,144.19,144.14,0.04727845]
[1768389885651,1.20774623,144.24,144.14,0.04727845]
[1768389885852,1.72621906,144.19,144.14,0.04727845]
[1768389886052,1.72621906,144.19,144.11,3.06393797]
[1768389886456,1.72621906,144.19,144.15,0.04497175]
[1768389888254,1.72621906,144.17,144.12,3.06393797]
[1768389888950,1.77380868,144.18,144.12,3.06393797]
[1768389889857,0.04758962,144.18,144.12,3.06393797]
[1768389890059,1.77380868,144.18,144.12,3.06393797]
[1768389891352,1.72621906,144.16,144.12,3.06393797]
[1768389891551,1.72621906,144.16,144.14,0.04584478]
[1768389891853,1.72621906,144.16,144.1,3.06393797]
[1768389893161,0.05323379,144.14,144.1,3.06393797]
[1768389896968,1.77945285,144.14,144.1,3.06393797]
[1768389899766,1.77945285,144.14,144.08,3.06393797]
[1768389900264,1.72621906,144.12,143.99,3.06393797]
[1768389900463,1.72621906,144.12,144.04,3.06393797]
[1768389900667,1.77402928,144.12,144.04,3.06393797]
[1768389901164,1.20774623,144.24,144.04,3.06393797]
[1768389901359,1.72621906,144.13,144.04,3.06393797]
[1768389902566,0.04915309,144.1,144.04,3.06393797]
[1768389902771,1.72621906,144.13,144.04,3.06393797]
[1768389902968,1.72621906,144.13,144.07,3.11133557]
[1768389903869,20.86,144.23,144.07,3.11133557]
[1768389904072,22.1597259,144.24,144.07,3.11133557]
[1768389904073,1.72621906,144.14,144.07,3.11133557]
[1768389904270,1.72621906,144.14,144.07,3.06393797]
[1768389904870,1.72621906,144.14,144.09,0.04525314]
[1768389905070,1.72621906,144.14,144.09,3.10919111]
[1768389905565,1.72621906,144.17,144.09,3.10919111]
[1768389905869,4.85315477,144.16,144.09,3.10919111]
[1768389906072,1.72621906,144.17,144.09,3.06393797]
[1768389906460,1.72621906,144.17,144.11,3.3341675]
[1768389907070,1.72621906,144.17,144.11,0.04850269]
[1768389907671,1.72621906,144.15,144.11,0.04850269]
[1768389908073,1.72621906,144.15,144.07,3.28566481]
[1768389908463,1.72621906,144.13,144.12,0.05303042]
[1768389908666,1.72621906,144.13,144.07,3.28566481]
[1768389908869,0.04560263,144.12,144.07,3.28566481]
[1768389918676,1.72621906,144.19,144.11,3.28566481]
[1768389918883,4.84901673,144.18,144.11,3.28566481]
[1768389919079,1.72621906,144.19,144.11,3.28566481]
[1768389919279,4.84899155,144.18,144.11,3.28566481]
[1768389919479,1.72621906,144.19,144.11,3.28566481]
[1768389919679,4.84899155,144.18,144.11,3.28566481]
[1768389919879,1.72621906,144.19,144.13,0.04525916]
[1768389920080,4.84869232,144.18,144.13,0.04525916]
[1768389920280,1.72621906,144.19,144.13,0.04525916]
[1768389920480,4.84895423,144.18,144.13,0.04525916]
[1768389920685,1.72621906,144.19,144.13,0.04525916]
[1768389921277,1.20774623,144.24,144.13,0.04525916]
[1768389921474,1.72621906,144.2,144.13,0.04525916]
[1768389921681,4.84905857,144.19,144.11,3.28566481]
[1768389922186,4.84905857,144.19,144.15,0.04842343]
[1768389923284,0.05155576,144.18,144.12,3.15083535]
[1768389931689,1.72621906,144.15,144.1,3.15083535]
[1768389932489,0.05022472,144.14,144.1,3.15083535]
[1768389932687,0.05022472,144.14,144.07,3.15083535]
[1768389941099,1.72621906,144.18,144.09,3.23284344]
[1768389941400,4.81618906,144.17,144.1,3.23284344]
[1768389941600,4.81618906,144.16,144.1,3.23284344]
[1768389941800,1.72621906,144.18,144.1,3.23284344]
[1768389941996,4.81631304,144.17,144.1,3.23284344]
[1768389942200,4.81631304,144.16,144.1,3.23284344]
[1768389942502,4.81631304,144.15,144.1,3.23284344]
[1768389942695,1.72621906,144.17,144.1,3.23284344]
[1768389943002,0.04642056,144.14,144.1,3.23284344]
[1768389951206,0.04642056,144.14,144.05,3.23284344]
[1768389951414,2.74488866,144.14,144.05,3.23284344]
[1768389951605,2.6984681,144.14,144.05,3.23284344]
[1768389953108,0.04507115,144.11,144.05,3.23284344]
[1768389960610,0.04507115,144.11,144.03,3.23284344]
[1768389961114,2.6984681,144.12,144.03,3.23284344]
[1768389961310,25.64391881,144.11,144.03,3.23284344]
[1768389961515,20.86,144.11,144.03,3.23284344]
[1768389962512,2.6984681,144.12,144.03,3.23284344]
[1768389962713,0.04574238,144.08,144.03,3.23284344]
[1768389971627,2.6984681,144.12,144.03,3.23284344]
[1768389971824,25.63530078,144.11,144.03,3.23284344]
[1768389972021,20.86,144.11,144.05,3.12855449]
[1768389972725,83.4784681,144.14,144.05,3.12855449]
[1768389972726,20.86,144.13,144.05,3.12855449]
[1768389973625,20.86,144.13,144.08,0.04948804]
[1768389975726,20.86,144.13,144.08,3.17804253]
[1768389978529,0.04499781,144.12,144.06,3.12855449]
[1768389978921,20.86,144.13,144.06,3.12855449]
[1768389980527,0.04534157,144.11,144.06,3.12855449]
[1768389982226,2.6984681,144.1,143.97,2.6984681]
[1768389983930,2.6984681,144.1,144.02,0.05228821]
[1768389984131,2.6984681,144.1,144.03,3.14964084]
[1768389984931,2.6984681,144.1,144.05,3.19335459]
[1768389985335,2.6984681,144.1,144.05,3.14964084]
[1768389985530,2.6984681,144.12,144.05,3.14964084]
[1768389985731,2.6984681,144.12,144.06,3.19599205]
[1768389988228,2.6984681,144.1,143.98,2.6984681]
[1768389988529,2.7423409,144.1,143.98,2.6984681]
[1768389988930,2.6984681,144.1,143.98,2.6984681]
[1768389989531,0.04574827,144.05,143.98,2.6984681]
[1768389989830,2.6984681,144.1,143.98,2.6984681]
[1768389990030,2.6984681,144.1,144.03,0.0454578]
[1768389990231,2.6984681,144.11,144.04,3.14964084]
[1768389991032,2.6984681,144.11,144.06,3.19955574]
[1768389991232,23.5584681,144.13,144.06,3.19955574]
[1768389993736,23.5584681,144.13,144.06,1.46674817]
[1768389993737,25.65271465,144.12,144.06,1.46674817]
[1768389993941,0.04973928,144.11,144.06,1.46674817]
[1768389996549,2.6984681,144.1,144.04,3.10561423]
[1768389997455,2.74522479,144.08,144.04,3.10561423]
[1768389999757,0.04675669,144.08,144.04,3.10561423]
[1768390000258,2.6984681,144.11,144.04,3.10561423]
[1768390000450,2.6984681,144.11,144.05,0.04766438]
[1768390000650,2.6984681,144.11,144.05,3.15327861]
[1768390003757,20.86,144.13,144.05,3.15327861]
[1768390003960,2.6984681,144.13,144.05,3.15327861]
[1768390005163,2.6984681,144.11,144.05,3.15327861]
[1768390005561,2.6984681,144.11,144.05,3.10561423]
[1768390005966,2.6984681,144.11,144.07,0.05004433]
[1768390006355,2.6984681,144.11,144.05,3.10561423]
[1768390006569,0.04896379,144.1,144.05,3.10561423]
[1768390007459,1.72830189,144.09,144.05,3.10561423]
[1768390013475,20.86,144.15,144.05,3.10561423]
[1768390013676,1.72830189,144.1,144.07,3.10561423]
[1768390014976,1.72830189,144.1,144.07,3.15222524]
[1768390015575,20.86,144.15,144.07,3.15222524]
[1768390015778,1.72830189,144.1,144.07,3.15222524]
[1768390016171,1.72830189,144.1,144.07,3.10561423]
[1768390016976,1.72830189,144.1,144.07,3.15621303]
[1768390017780,1.72830189,144.1,144.01,1.72830189]
[1768390017981,1.77536075,144.1,144.01,1.72830189]
[1768390018281,1.72830189,144.1,144.01,1.72830189]
[1768390019682,1.72830189,144.1,144.02,3.10561423]
[1768390020576,1.72830189,144.1,144.06,3.10561423]
[1768390020783,1.72830189,144.1,144.05,0.04683235]
[1768390020784,1.72830189,144.09,144.05,3.15244658]
[1768390021283,1.72830189,144.09,144.05,3.10561423]
[1768390021673,1.72830189,144.09,144.06,3.15034785]
[1768390021878,1.72830189,144.07,143.99,164.78122242]
[1768390022079,1.72830189,144.05,143.99,164.78122242]
[1768390023587,1.72830189,144.05,144.01,0.04927529]
[1768390023778,1.72830189,144.05,144.01,3.15488952]
[1768390023978,20.86,144.15,144.01,3.15488952]
[1768390024381,20.86,144.15,144.01,3.10561423]
[1768390025077,0.04971297,144.09,144.01,3.10561423]
[1768390038300,20.86,144.15,144.01,3.10561423]
[1768390039600,20.86,144.15,144.07,0.04506359]
[1768390039994,20.86,144.15,144.07,3.11182098]
[1768390042405,20.86,144.15,144.07,0.04506359]
[1768390043108,20.86,144.15,144.07,3.11182098]
[1768390046014,101.68,144.16,144.07,3.11182098]
[1768390046408,101.68,144.16,144.07,3.06675739]
[1768390047012,101.68,144.16,144.0,81.9]
[1768390047013,80.82,144.16,144.1,3.11994037]
[1768390047215,0.05027029,144.13,144.1,3.11994037]
[1768390047414,0.05027029,144.13,144.1,3.06675739]
[1768390047807,0.05027029,144.13,144.1,3.11710231]
[1768390048511,80.82,144.16,144.1,3.11710231]
[1768390049215,22.06774623,144.24,144.1,3.11710231]
[1768390049411,20.86,144.22,144.1,3.11710231]
[1768390049715,20.86,144.22,144.1,3.06675739]
[1768390050121,20.86,144.22,144.0,143.9]
[1768390050122,20.86,144.22,144.15,0.05026091]
[1768390050618,20.86,144.22,144.12,3.06675739]
[1768390052409,20.86,144.22,144.16,0.04739922]
[1768390052724,0.04832855,144.18,144.12,3.06675739]
[1768390053218,0.04832855,144.18,144.03,3.06675739]
[1768390053721,20.86,144.22,144.03,3.06675739]
[1768390056122,20.86,144.22,144.11,0.04745313]
[1768390056521,20.86,144.22,144.09,3.21416617]
[1768390056717,22.24,144.22,144.09,3.21416617]
[1768390057514,20.86,144.22,144.09,3.21416617]
[1768390058424,20.86,144.22,144.14,0.04723972]
[1768390058615,20.86,144.22,144.09,3.21416617]
[1768390058817,0.04621161,144.17,144.09,3.21416617]
[1768390068231,1.42621161,144.17,144.0,3.21416617]
[1768390068428,0.04621161,144.17,144.0,3.21416617]
[1768390068624,22.0676205,144.22,144.0,3.21416617]
[1768390069020,0.04864218,144.1,144.0,3.21416617]
[1768390069525,22.0676205,144.22,144.0,3.21416617]
[1768390071930,22.0676205,144.22,144.1,0.04672991]